Workbook

Sheet Jug. Stam
A2: RESULTATS CANARIS DE CHANT HARZ
A3: CONCOURS DE LAMBESC du
B5: Juges:
A12: GRAND PRIX D'ELEVAGE
AA13: DeLiBloc | AB13: Total | AC13: ClaProv
A14: Classe A01-011-1 STAM
A15: Cage | B15: Stam | C15: Eleveur | D15: Club | E15: Bague | F15: R | G15: G | H15: TE | I15: TP | J15: F | K15: B | L15: GL | M15: T | N15: I | O15: Pts | P15: Harm. | Q15: Total | R15: Classt
A17: 1 | B17: 784 | C17: X | D17: OCPA | E17: 12 | F17: 23 | G17: 22 | I17: 16 | J17: 16 | N17: 9 | O17: =IF(SUM(F17:N17)=0,"PC",SUM(F17:N17)) -> 86 | P17: 1 | Q17: =SUM(O17:O20)+P17 -> 350 | R17: 8 | AA17: =ROW(A17) -> 17 | AB17: =INDIRECT("Q"&AA17) -> 350 | AC17: =RANK(AB17,$AB$17:$AB$41) -> 8
A18: 2 | E18: 10 | F18: 23 | G18: 22 | I18: 16 | J18: 16 | N18: 9 | O18: =IF(SUM(F18:N18)=0,"PC",SUM(F18:N18)) -> 86 | AA18: =AA17+4 -> 21 | AB18: =INDIRECT("Q"&AA18) -> 322 | AC18: =RANK(AB18,$AB$17:$AB$41) -> 12
A19: 3 | E19: 32 | F19: 23 | G19: 23 | I19: 17 | J19: 16 | N19: 9 | O19: 88 | AA19: =AA18+4 -> 25 | AB19: =INDIRECT("Q"&AA19) -> 355 | AC19: 6
A20: 4 | E20: 6 | F20: 23 | G20: 23 | I20: 17 | J20: 17 | N20: 9 | O20: 89 | AA20: 29 | AB20: =INDIRECT("Q"&AA20) -> 347 | AC20: 9
A21: 5 | B21: 223 | C21: Y | D21: OCPA | E21: 24 | F21: 23 | G21: 22 | I21: 17 | J21: 17 | N21: 9 | O21: 88 | Q21: =SUM(O21:O24)+P21 -> 322 | R21: 12 | AA21: 33 | AB21: =INDIRECT("Q"&AA21) -> 352 | AC21: 7
A22: 6 | E22: 43 | F22: 23 | G22: 23 | I22: 16 | J22: 10 | N22: 8 | O22: 80 | AA22: 37 | AB22: =INDIRECT("Q"&AA22) -> 359 | AC22: 5
A23: 7 | E23: 72 | F23: 22 | G23: 22 | I23: 16 | N23: 4 | O23: 64 | AA23: 41 | AB23: =INDIRECT("Q"&AA23) -> 327 | AC23: 10
A24: 8 | E24: 29 | F24: 23 | G24: 24 | I24: 17 | J24: 17 | N24: 9 | O24: 90 | AA24: 45 | AB24: =INDIRECT("Q"&AA24) -> 326 | AC24: 11
A25: 9 | B25: 223 | C25: Y | D25: OCPA | E25: 44 | F25: 23 | G25: 23 | I25: 17 | J25: 17 | N25: 9 | O25: 89 | P25: 3 | Q25: =SUM(O25:O28)+P25 -> 355 | R25: 6 | AA25: 49 | AB25: =INDIRECT("Q"&AA25) -> 360 | AC25: 3
A26: 10 | E26: 6 | F26: 23 | G26: 22 | I26: 17 | J26: 16 | N26: 9 | O26: 87 | AA26: 53 | AB26: =INDIRECT("Q"&AA26) -> 362 | AC26: 1
A27: 11 | E27: 27 | F27: 23 | G27: 22 | I27: 17 | J27: 17 | N27: 9 | O27: 88 | AA27: 57 | AB27: =INDIRECT("Q"&AA27) -> 360 | AC27: 3
A28: 12 | E28: 23 | F28: 23 | G28: 23 | I28: 17 | J28: 16 | N28: 9 | O28: 88 | AA28: 61 | AB28: =INDIRECT("Q"&AA28) -> 362 | AC28: 1
A29: 13 | B29: 223 | C29: Y | D29: OCPA | E29: 42 | F29: 23 | G29: 22 | I29: 17 | J29: 16 | N29: 9 | O29: 87 | Q29: =SUM(O29:O32)+P29 -> 347 | R29: 9 | AA29: 65 | AB29: =INDIRECT("Q"&AA29) -> 0 | AC29: 13
A30: 14 | E30: 48 | F30: 23 | G30: 22 | I30: 17 | J30: 17 | N30: 9 | O30: 88 | AA30: 69 | AB30: =INDIRECT("Q"&AA30) -> 0 | AC30: 13
A31: 15 | E31: 37 | F31: 23 | G31: 23 | I31: 16 | J31: 15 | N31: 9 | O31: 86 | AA31: 73 | AB31: =INDIRECT("Q"&AA31) -> 0 | AC31: 13
A32: 16 | E32: 38 | F32: 23 | G32: 23 | I32: 16 | J32: 15 | N32: 9 | O32: 86 | AA32: 77 | AB32: =INDIRECT("Q"&AA32) -> 0 | AC32: 13
A33: 17 | B33: 747 | C33: M | D33: OCPA | E33: 44 | F33: 23 | G33: 23 | I33: 16 | J33: 16 | N33: 9 | O33: 87 | P33: 1 | Q33: =SUM(O33:O36)+P33 -> 352 | R33: 7 | AA33: 81 | AB33: =INDIRECT("Q"&AA33) -> 0 | AC33: 13
A34: 18 | E34: 32 | F34: 23 | G34: 23 | I34: 16 | J34: 15 | M34: 1 | N34: 9 | O34: 87 | AA34: 85 | AB34: =INDIRECT("Q"&AA34) -> 0 | AC34: 13
A35: 19 | E35: 79 | F35: 23 | G35: 24 | I35: 17 | J35: 16 | N35: 9 | O35: 89 | AA35: 89 | AB35: =INDIRECT("Q"&AA35) -> 0 | AC35: 13
A36: 20 | E36: 21 | F36: 23 | G36: 22 | I36: 17 | J36: 17 | N36: 9 | O36: 88 | AA36: 93 | AB36: =INDIRECT("Q"&AA36) -> 0 | AC36: 13
A37: 21 | B37: 747 | C37: M | D37: OCPA | E37: 37 | F37: 23 | G37: 24 | I37: 17 | J37: 17 | N37: 9 | O37: 90 | P37: 2 | Q37: =SUM(O37:O40)+P37 -> 359 | R37: 5 | AA37: 97 | AB37: =INDIRECT("Q"&AA37) -> 0 | AC37: 13
A38: 22 | E38: 50 | F38: 23 | G38: 23 | I38: 17 | J38: 17 | N38: 9 | O38: 89 | AA38: 101 | AB38: =INDIRECT("Q"&AA38) -> 0 | AC38: 13
A39: 23 | E39: 31 | F39: 23 | G39: 23 | I39: 17 | J39: 16 | N39: 9 | O39: 88 | AA39: =AA38+4 -> 105 | AB39: =INDIRECT("Q"&AA39) -> 0 | AC39: 13
A40: 24 | E40: 33 | F40: 23 | G40: 23 | I40: 17 | J40: 17 | M40: 1 | N40: 9 | O40: 90 | AA40: =AA39+4 -> 109 | AB40: =INDIRECT("Q"&AA40) -> 0 | AC40: 13
A41: 25 | B41: 747 | C41: M | D41: OCPA | E41: 28 | F41: 23 | G41: 23 | I41: 17 | J41: 16 | N41: 9 | O41: 88 | Q41: =SUM(O41:O44)+P41 -> 327 | R41: 10 | AA41: =AA40+4 -> 113 | AB41: =INDIRECT("Q"&AA41) -> 0 | AC41: 13
A42: 26 | E42: 67 | F42: 22 | G42: 22 | I42: 16 | N42: 4 | O42: 64
A43: 27 | E43: 45 | F43: 23 | G43: 22 | I43: 16 | J43: 16 | N43: 9 | O43: 86
A44: 28 | E44: 70 | F44: 23 | G44: 23 | I44: 17 | J44: 17 | N44: 9 | O44: 89
A45: 29 | B45: 767 | C45: N | D45: OCPA | E45: 14 | F45: 23 | G45: 22 | I45: 16 | J45: 16 | N45: 9 | O45: 86 | Q45: =SUM(O45:O48)+P45 -> 326 | R45: 11
A46: 30 | E46: 21 | F46: 23 | G46: 23 | I46: 16 | N46: 5 | O46: 67
A47: 31 | E47: 7 | F47: 23 | G47: 22 | I47: 16 | J47: 16 | N47: 9 | O47: 86
A48: 32 | E48: 16 | F48: 23 | G48: 23 | I48: 16 | J48: 16 | N48: 9 | O48: 87
A49: 33 | B49: 734 | C49: O | D49: OCPA | E49: 16 | F49: 23 | G49: 23 | I49: 18 | J49: 18 | N49: 8 | O49: 90 | P49: 2 | Q49: =SUM(O49:O52)+P49 -> 360 | R49: 3
A50: 34 | E50: 18 | F50: 23 | G50: 23 | I50: 18 | J50: 17 | N50: 9 | O50: 90
A51: 35 | E51: 15 | F51: 23 | G51: 23 | I51: 17 | J51: 17 | N51: 9 | O51: 89
A52: 36 | E52: 40 | F52: 23 | G52: 22 | I52: 17 | J52: 17 | M52: 1 | N52: 9 | O52: 89
A53: 37 | B53: 734 | C53: O | D53: OCPA | E53: 37 | F53: 23 | G53: 23 | I53: 18 | J53: 18 | N53: 8 | O53: 90 | P53: 2 | Q53: =SUM(O53:O56)+P53 -> 362 | R53: 2
A54: 38 | E54: 11 | F54: 23 | G54: 23 | I54: 18 | J54: 18 | N54: 8 | O54: 90
A55: 39 | E55: 47 | F55: 23 | G55: 23 | I55: 17 | J55: 18 | N55: 9 | O55: 90
A56: 40 | E56: 14 | F56: 23 | G56: 23 | I56: 18 | J56: 18 | N56: 8 | O56: 90
A57: 41 | B57: 744 | C57: P | D57: OCPA | E57: 19 | F57: 23 | G57: 23 | I57: 17 | J57: 17 | N57: 9 | O57: 89 | P57: 1 | Q57: =SUM(O57:O60)+P57 -> 360 | R57: 4
A58: 42 | E58: 44 | F58: 24 | G58: 23 | I58: 18 | J58: 16 | N58: 9 | O58: 90
A59: 43 | E59: 11 | F59: 23 | G59: 24 | I59: 17 | J59: 17 | N59: 9 | O59: 90
A60: 44 | E60: 41 | F60: 24 | G60: 25 | I60: 17 | J60: 18 | N60: 6 | O60: 90
A61: 45 | B61: 744 | C61: P | D61: OCPA | E61: 12 | F61: 24 | G61: 24 | I61: 18 | J61: 18 | N61: 6 | O61: 90 | P61: 2 | Q61: =SUM(O61:O64)+P61 -> 362 | R61: 1
A62: 46 | E62: 1 | F62: 23 | G62: 24 | I62: 17 | J62: 17 | N62: 9 | O62: 90
A63: 47 | E63: 3 | F63: 23 | G63: 24 | I63: 18 | J63: 17 | N63: 8 | O63: 90
A64: 48 | E64: 9 | F64: 23 | G64: 23 | I64: 17 | J64: 18 | N64: 9 | O64: 90
A65: 49 | O65: PC
A66: 50 | O66: PC
A67: 51 | O67: PC
A68: 52 | O68: PC
A69: 53 | O69: PC | Q69: =SUM(O69:O72)+P69 -> 0
A70: 54 | O70: PC
A71: 55 | O71: PC
A72: 56 | O72: PC
A73: 57 | O73: PC | Q73: =SUM(O73:O76)+P73 -> 0
A74: 58 | O74: PC
A75: 59 | O75: PC
A76: 60 | O76: PC
A77: 61 | O77: PC | Q77: =SUM(O77:O80)+P77 -> 0
A78: 62 | O78: PC | Q78: =SUM(O78:O81)+P78 -> 0
A79: 63 | O79: PC | Q79: 0
A80: 64 | O80: PC | Q80: 0
A81: 65 | O81: PC | Q81: 0
A82: 66 | O82: =IF(SUM(F82:N82)=0,"PC",SUM(F82:N82)) -> PC | Q82: 0
A83: 67 | O83: PC | Q83: 0
A84: 68 | O84: PC | Q84: 0
A85: 69 | O85: PC | Q85: 0
A86: 70 | O86: PC | Q86: 0
A87: 71 | O87: PC | Q87: 0
A88: 72 | O88: PC | Q88: 0
A89: 73 | O89: PC | Q89: 0
A90: 74 | O90: PC | Q90: 0
A91: 75 | O91: PC | Q91: 0
A92: 76 | O92: PC | Q92: 0
A93: 77 | O93: PC | Q93: 0
A94: 78 | O94: PC | Q94: 0
A95: 79 | O95: PC | Q95: 0
A96: 80 | O96: PC | Q96: 0
A97: 81 | O97: PC | Q97: 0
A98: 82 | O98: PC | Q98: 0
A99: 83 | O99: PC | Q99: 0
A100: 84 | O100: PC | Q100: 0
A101: 85 | O101: PC | Q101: 0
A102: 86 | O102: PC | Q102: 0
A103: 87 | O103: PC | Q103: 0
A104: 88 | O104: PC | Q104: 0
A105: 89 | O105: PC | Q105: 0
A106: 90 | O106: PC | Q106: 0
A107: 91 | O107: PC | Q107: 0
A108: 92 | O108: PC | Q108: 0
A109: 93 | O109: PC | Q109: 0
A110: 94 | O110: PC | Q110: 0
A111: 95 | O111: PC | Q111: 0
A112: 96 | O112: PC | Q112: 0
A113: 97 | O113: PC | Q113: 0
A114: 98 | O114: PC | Q114: 0
A115: 99 | O115: PC | Q115: 0
A116: 100 | O116: PC | Q116: 0

Sheet Jug. Serie
A2: Classe A01-015-1 SERIE
A4: Cage | B4: Stam | C4: Eleveur | D4: Club | E4: Bague | F4: R | G4: G | H4: TE | I4: TP | J4: F | K4: B | L4: GL | M4: T | N4: I | O4: Pts | Q4: Total | R4: Classt
A6: 201 | B6: 747 | C6: M | D6: OCPA | E6: 66 | F6: 22 | G6: 22 | I6: 17 | J6: 17 | M6: 1 | N6: 9 | O6: =IF(SUM(F6:N6)=0,"PC",SUM(F6:N6)) -> 88 | Q6: =SUM(O6:O7) -> 176
A7: 202 | E7: 69 | F7: 22 | G7: 22 | I7: 17 | J7: 17 | M7: 1 | N7: 9 | O7: 88
A8: 203 | B8: 747 | C8: M | D8: OCPA | E8: 54 | F8: 23 | G8: 23 | I8: 17 | J8: 16 | N8: 9 | O8: 88 | Q8: =SUM(O8:O9) -> 178
A9: 204 | E9: 53 | F9: 22 | G9: 22 | I9: 17 | J9: 17 | K9: 2 | M9: 1 | N9: 9 | O9: 90
A10: 205 | B10: 784 | C10: Y | D10: OCPA | E10: 20 | F10: 22 | G10: 22 | I10: 16 | J10: 16 | M10: 1 | N10: 9 | O10: 86 | Q10: =SUM(O10:O11) -> 172
A11: 206 | E11: 29 | F11: 22 | G11: 22 | I11: 16 | J11: 16 | M11: 1 | N11: 9 | O11: 86
A12: 207 | B12: 223 | C12: X | D12: OCPA | E12: 26 | F12: 22 | G12: 22 | I12: 17 | J12: 16 | N12: 9 | O12: 86 | Q12: =SUM(O12:O13) -> 172
A13: 208 | E13: 25 | F13: 22 | G13: 22 | I13: 17 | J13: 16 | N13: 9 | O13: 86
A14: 209 | B14: 273 | C14: R | D14: OCPA | E14: 15 | F14: 22 | G14: 22 | I14: 17 | J14: 16 | M14: 1 | N14: 9 | O14: 87 | Q14: =SUM(O14:O15) -> 176
A15: 210 | E15: 16 | F15: 22 | G15: 24 | I15: 17 | J15: 17 | N15: 9 | O15: 89
A16: 211 | O16: =IF(B16="",O16="",IF(SUM(F16:N16)=0,"PC",SUM(F16:N16))) -> 0 | Q16: =SUM(O16:O17) -> 0
A17: 212 | O17: =IF(B16="",O17="",IF(SUM(F17:N17)=0,"PC",SUM(F17:N17))) -> 0
A18: 213 | O18: =IF(B18="",O18="",IF((F18:N18)="","PC",SUM(F18:N18))) -> 0 | Q18: =SUM(O18:O19) -> 0
A19: 214 | O19: =IF(B18="",O19="",IF((F19:N19)="","PC",SUM(F19:N19))) -> 0
A20: 215 | O20: =IF(B20="",O20="",IF((F20:N20)="","PC",SUM(F20:N20))) -> 0 | Q20: =SUM(O20:O21) -> 0
A21: 216 | O21: =IF(B20="",O21="",IF((F21:N21)="","PC",SUM(F21:N21))) -> 0
A22: 217 | O22: =IF(B22="",O22="",IF((F22:N22)="","PC",SUM(F22:N22))) -> 0 | Q22: =SUM(O22:O23) -> 0
A23: 218 | O23: =IF(B22="",O23="",IF((F23:N23)="","PC",SUM(F23:N23))) -> 0
A24: 219 | O24: =IF(B24="",O24="",IF((F24:N24)="","PC",SUM(F24:N24))) -> 0 | Q24: =SUM(O24:O25) -> 0
A25: 220 | O25: =IF(B24="",O25="",IF((F25:N25)="","PC",SUM(F25:N25))) -> 0
A26: 221 | O26: =IF(B26="",O26="",IF((F26:N26)="","PC",SUM(F26:N26))) -> 0 | Q26: =SUM(O26:O27) -> 0
A27: 222 | O27: =IF(B26="",O27="",IF((F27:N27)="","PC",SUM(F27:N27))) -> 0
A28: 223 | O28: =IF(B28="",O28="",IF((F28:N28)="","PC",SUM(F28:N28))) -> 0 | Q28: =SUM(O28:O29) -> 0
A29: 224 | O29: =IF(B28="",O29="",IF((F29:N29)="","PC",SUM(F29:N29))) -> 0
A30: 225 | O30: =IF(B30="",O30="",IF((F30:N30)="","PC",SUM(F30:N30))) -> 0 | Q30: =SUM(O30:O31) -> 0
A31: 226 | O31: =IF(B30="",O31="",IF((F31:N31)="","PC",SUM(F31:N31))) -> 0
A32: 227 | O32: =IF(B32="",O32="",IF((F32:N32)="","PC",SUM(F32:N32))) -> 0 | Q32: =SUM(O32:O33) -> 0
A33: 228 | O33: =IF(B32="",O33="",IF((F33:N33)="","PC",SUM(F33:N33))) -> 0
A34: 229 | O34: =IF(B34="",O34="",IF((F34:N34)="","PC",SUM(F34:N34))) -> 0 | Q34: =SUM(O34:O35) -> 0
A35: 230 | O35: =IF(B34="",O35="",IF((F35:N35)="","PC",SUM(F35:N35))) -> 0
A36: 231 | O36: =IF(B36="",O36="",IF((F36:N36)="","PC",SUM(F36:N36))) -> 0 | Q36: =SUM(O36:O37) -> 0
A37: 232 | O37: =IF(B36="",O37="",IF((F37:N37)="","PC",SUM(F37:N37))) -> 0
A38: 233 | O38: =IF(B38="",O38="",IF((F38:N38)="","PC",SUM(F38:N38))) -> 0 | Q38: =SUM(O38:O39) -> 0
A39: 234 | O39: =IF(B38="",O39="",IF((F39:N39)="","PC",SUM(F39:N39))) -> 0
A40: 235 | O40: =IF(B40="",O40="",IF((F40:N40)="","PC",SUM(F40:N40))) -> 0 | Q40: =SUM(O40:O41) -> 0
A41: 236 | O41: =IF(B40="",O41="",IF((F41:N41)="","PC",SUM(F41:N41))) -> 0
A42: 237 | O42: =IF(B42="",O42="",IF((F42:N42)="","PC",SUM(F42:N42))) -> 0 | Q42: =SUM(O42:O43) -> 0
A43: 238 | O43: =IF(B42="",O43="",IF((F43:N43)="","PC",SUM(F43:N43))) -> 0
A44: 239 | O44: =IF(B44="",O44="",IF((F44:N44)="","PC",SUM(F44:N44))) -> 0 | Q44: =SUM(O44:O45) -> 0
A45: 240 | O45: =IF(B44="",O45="",IF((F45:N45)="","PC",SUM(F45:N45))) -> 0
A46: 241 | O46: =IF(B46="",O46="",IF((F46:N46)="","PC",SUM(F46:N46))) -> 0 | Q46: =SUM(O46:O47) -> 0
A47: 242 | O47: =IF(B46="",O47="",IF((F47:N47)="","PC",SUM(F47:N47))) -> 0
A48: 243 | O48: =IF(B48="",O48="",IF((F48:N48)="","PC",SUM(F48:N48))) -> 0 | Q48: =SUM(O48:O49) -> 0
A49: 244 | O49: =IF(B48="",O49="",IF((F49:N49)="","PC",SUM(F49:N49))) -> 0
A50: 245 | O50: =IF(B50="",O50="",IF((F50:N50)="","PC",SUM(F50:N50))) -> 0 | Q50: =SUM(O50:O51) -> 0
A51: 246 | O51: =IF(B50="",O51="",IF((F51:N51)="","PC",SUM(F51:N51))) -> 0
A52: 247 | O52: =IF(B52="",O52="",IF((F52:N52)="","PC",SUM(F52:N52))) -> 0 | Q52: =SUM(O52:O53) -> 0
A53: 248 | O53: =IF(B52="",O53="",IF((F53:N53)="","PC",SUM(F53:N53))) -> 0
A54: 249 | O54: =IF(B54="",O54="",IF((F54:N54)="","PC",SUM(F54:N54))) -> 0 | Q54: =SUM(O54:O55) -> 0
A55: 250 | O55: =IF(B54="",O55="",IF((F55:N55)="","PC",SUM(F55:N55))) -> 0

Sheet Jug. Ind
A2: Classe A01-012-1 INDIVIDUEL
A4: Cage | B4: Stam | C4: Eleveur | D4: Club | E4: Bague | F4: R | G4: G | H4: TE | I4: TP | J4: F | K4: B | L4: GL | M4: T | N4: I | Q4: Total | R4: Classt
A6: 301 | B6: 747 | C6: M | D6: OCPA | E6: 63 | F6: 23 | G6: 23 | I6: 17 | J6: 18 | N6: 9 | Q6: =IF(B6="",Q6="",IF(SUM(F6:N6)=0,"PC",SUM(F6:N6))) -> 90
A7: 302 | B7: 747 | C7: M | D7: OCPA | E7: 52 | F7: 22 | G7: 22 | I7: 16 | J7: 16 | M7: 1 | N7: 9 | Q7: =IF(B7="",Q7="",IF(SUM(F7:N7)=0,"PC",SUM(F7:N7))) -> 86
A8: 303 | B8: 747 | C8: M | D8: OCPA | E8: 38 | F8: 22 | G8: 22 | I8: 16 | J8: 16 | M8: 1 | N8: 9 | Q8: 86
A9: 304 | B9: 767 | C9: N | D9: OCPA | E9: 11 | F9: 22 | G9: 22 | I9: 17 | J9: 16 | M9: 1 | N9: 9 | Q9: 87
A10: 305 | B10: 784 | C10: X | D10: OCPA | E10: 2 | F10: 21 | G10: 21 | I10: 16 | J10: 16 | M10: 1 | N10: 9 | Q10: 84
A11: 306 | B11: 784 | C11: X | D11: OCPA | E11: 1 | F11: 21 | G11: 21 | I11: 16 | J11: 16 | M11: 2 | N11: 9 | Q11: 85
A12: 307 | B12: 223 | C12: Y | D12: OCPA | E12: 61 | F12: 21 | G12: 21 | I12: 16 | J12: 16 | M12: 1 | N12: 9 | Q12: 84
A13: 308 | B13: 223 | C13: Y | D13: OCPA | E13: 62 | F13: 21 | G13: 22 | I13: 17 | J13: 17 | M13: 1 | N13: 9 | Q13: 87
A14: 309 | B14: 223 | C14: Y | D14: OCPA | E14: 56 | Q14: PC
A15: 310 | B15: 223 | C15: Y | D15: OCPA | E15: 55 | F15: 22 | G15: 22 | I15: 17 | J15: 16 | M15: 1 | N15: 9 | Q15: 87
A16: 311 | B16: 223 | C16: Y | D16: OCPA | E16: 63 | F16: 23 | G16: 22 | I16: 16 | M16: 1 | N16: 5 | Q16: 67
A17: 312 | B17: 223 | C17: Y | D17: OCPA | E17: 65 | F17: 23 | G17: 22 | I17: 17 | J17: 16 | K17: 3 | N17: 9 | Q17: =IF(B17="",Q17="",IF(SUM(F17:N17)=0,"PC",SUM(F17:N17))) -> 90
A18: 313 | B18: 273 | C18: R | D18: OCPA | E18: 4 | F18: 22 | G18: 22 | I18: 16 | J18: 16 | M18: 1 | N18: 9 | Q18: 86
Q19: =IF(B19="",Q19="",IF(SUM(F19:N19)=0,"PC",SUM(F19:N19))) -> 0
Q20: =IF(B20="",Q20="",IF(SUM(F20:N20)=0,"PC",SUM(F20:N20))) -> 0
Q21: 0
Q22: 0
Q23: 0
Q24: 0
Q25: 0
Q26: 0
Q27: 0
Q28: 0
Q29: 0
Q30: 0
Q31: 0
Q32: 0
Q33: 0
Q34: 0
Q35: 0
Q36: 0
Q37: 0
Q38: 0
Q39: 0
Q40: 0
Q41: 0
Q42: 0
Q43: 0
Q44: 0
Q45: 0
Q46: 0
Q47: 0
Q48: 0
Q49: 0
Q50: 0
Q51: 0
Q52: 0
Q53: 0
Q54: 0
Q55: 0
Q56: 0
Q57: 0
Q58: 0
Q59: 0
Q60: 0
Q61: 0
Q62: 0
Q63: 0

Sheet Classt Stam
A2: RESULTATS CANARIS DE CHANT HARZ
A3: CONCOURS DE LAMBESC du
B5: Juges:
A12: GRAND PRIX D'ELEVAGE
A14: Classe A01-011-1 STAM
R15: Classt
A17: 45 | B17: 744 | C17: P | D17: OCPA | E17: 12 | F17: 24 | G17: 24 | I17: 18 | J17: 18 | N17: 6 | O17: 90 | P17: 2 | Q17: 362 | R17: CH
A18: 46 | E18: 1 | F18: 23 | G18: 24 | I18: 17 | J18: 17 | N18: 9 | O18: 90
A19: 47 | E19: 3 | F19: 23 | G19: 24 | I19: 18 | J19: 17 | N19: 8 | O19: 90
A20: 48 | E20: 9 | F20: 23 | G20: 23 | I20: 17 | J20: 18 | N20: 9 | O20: 90
A21: 37 | B21: 734 | C21: O | D21: OCPA | E21: 37 | F21: 23 | G21: 23 | I21: 18 | J21: 18 | N21: 8 | O21: 90 | P21: 2 | Q21: 362 | R21: 2°
A22: 38 | E22: 11 | F22: 23 | G22: 23 | I22: 18 | J22: 18 | N22: 8 | O22: 90
A23: 39 | E23: 47 | F23: 23 | G23: 23 | I23: 17 | J23: 18 | N23: 9 | O23: 90
A24: 40 | E24: 14 | F24: 23 | G24: 23 | I24: 18 | J24: 18 | N24: 8 | O24: 90
A25: 33 | B25: 734 | C25: O | D25: OCPA | E25: 16 | F25: 23 | G25: 23 | I25: 18 | J25: 18 | N25: 8 | O25: 90 | P25: 2 | Q25: 360 | R25: 3°
A26: 34 | E26: 18 | F26: 23 | G26: 23 | I26: 18 | J26: 17 | N26: 9 | O26: 90
A27: 35 | E27: 15 | F27: 23 | G27: 23 | I27: 17 | J27: 17 | N27: 9 | O27: 89
A28: 36 | E28: 40 | F28: 23 | G28: 22 | I28: 17 | J28: 17 | M28: 1 | N28: 9 | O28: 89
A29: 41 | B29: 744 | C29: P | D29: OCPA | E29: 19 | F29: 23 | G29: 23 | I29: 17 | J29: 17 | N29: 9 | O29: 89 | P29: 1 | Q29: 360 | R29: 4°
A30: 42 | E30: 44 | F30: 24 | G30: 23 | I30: 18 | J30: 16 | N30: 9 | O30: 90
A31: 43 | E31: 11 | F31: 23 | G31: 24 | I31: 17 | J31: 17 | N31: 9 | O31: 90
A32: 44 | E32: 41 | F32: 24 | G32: 25 | I32: 17 | J32: 18 | N32: 6 | O32: 90
A33: 21 | B33: 747 | C33: M | D33: OCPA | E33: 37 | F33: 23 | G33: 24 | I33: 17 | J33: 17 | N33: 9 | O33: 90 | P33: 2 | Q33: 359 | R33: 5°
A34: 22 | E34: 50 | F34: 23 | G34: 23 | I34: 17 | J34: 17 | N34: 9 | O34: 89
A35: 23 | E35: 31 | F35: 23 | G35: 23 | I35: 17 | J35: 16 | N35: 9 | O35: 88
A36: 24 | E36: 33 | F36: 23 | G36: 23 | I36: 17 | J36: 17 | M36: 1 | N36: 9 | O36: 90
A37: 9 | B37: 223 | C37: Y | D37: OCPA | E37: 44 | F37: 23 | G37: 23 | I37: 17 | J37: 17 | N37: 9 | O37: 89 | P37: 3 | Q37: 355 | R37: 6°
A38: 10 | E38: 6 | F38: 23 | G38: 22 | I38: 17 | J38: 16 | N38: 9 | O38: 87
A39: 11 | E39: 27 | F39: 23 | G39: 22 | I39: 17 | J39: 17 | N39: 9 | O39: 88
A40: 12 | E40: 23 | F40: 23 | G40: 23 | I40: 17 | J40: 16 | N40: 9 | O40: 88
A41: 17 | B41: 747 | C41: M | D41: OCPA | E41: 44 | F41: 23 | G41: 23 | I41: 16 | J41: 16 | N41: 9 | O41: 87 | P41: 1 | Q41: 352 | R41: 7°
A42: 18 | E42: 32 | F42: 23 | G42: 23 | I42: 16 | J42: 15 | M42: 1 | N42: 9 | O42: 87
A43: 19 | E43: 79 | F43: 23 | G43: 24 | I43: 17 | J43: 16 | N43: 9 | O43: 89
A44: 20 | E44: 21 | F44: 23 | G44: 22 | I44: 17 | J44: 17 | N44: 9 | O44: 88
A45: 1 | B45: 784 | C45: X | D45: OCPA | E45: 12 | F45: 23 | G45: 22 | I45: 16 | J45: 16 | N45: 9 | O45: 86 | P45: 1 | Q45: 350 | R45: 8°
A46: 2 | E46: 10 | F46: 23 | G46: 22 | I46: 16 | J46: 16 | N46: 9 | O46: 86
A47: 3 | E47: 32 | F47: 23 | G47: 23 | I47: 17 | J47: 16 | N47: 9 | O47: 88
A48: 4 | E48: 6 | F48: 23 | G48: 23 | I48: 17 | J48: 17 | N48: 9 | O48: 89
A49: 13 | B49: 223 | C49: Y | D49: OCPA | E49: 42 | F49: 23 | G49: 22 | I49: 17 | J49: 16 | N49: 9 | O49: 87 | Q49: 347 | R49: 9°
A50: 14 | E50: 48 | F50: 23 | G50: 22 | I50: 17 | J50: 17 | N50: 9 | O50: 88
A51: 15 | E51: 37 | F51: 23 | G51: 23 | I51: 16 | J51: 15 | N51: 9 | O51: 86
A52: 16 | E52: 38 | F52: 23 | G52: 23 | I52: 16 | J52: 15 | N52: 9 | O52: 86
A53: 25 | B53: 747 | C53: M | D53: OCPA | E53: 28 | F53: 23 | G53: 23 | I53: 17 | J53: 16 | N53: 9 | O53: 88 | Q53: 327 | R53: 10°
A54: 26 | E54: 67 | F54: 22 | G54: 22 | I54: 16 | N54: 4 | O54: 64
A55: 27 | E55: 45 | F55: 23 | G55: 22 | I55: 16 | J55: 16 | N55: 9 | O55: 86
A56: 28 | E56: 70 | F56: 23 | G56: 23 | I56: 17 | J56: 17 | N56: 9 | O56: 89
A57: 29 | B57: 767 | C57: N | D57: OCPA | E57: 14 | F57: 23 | G57: 22 | I57: 16 | J57: 16 | N57: 9 | O57: 86 | Q57: 326 | R57: 11°
A58: 30 | E58: 21 | F58: 23 | G58: 23 | I58: 16 | N58: 5 | O58: 67
A59: 31 | E59: 7 | F59: 23 | G59: 22 | I59: 16 | J59: 16 | N59: 9 | O59: 86
A60: 32 | E60: 16 | F60: 23 | G60: 23 | I60: 16 | J60: 16 | N60: 9 | O60: 87
A61: 5 | B61: 223 | C61: Y | D61: OCPA | E61: 24 | F61: 23 | G61: 22 | I61: 17 | J61: 17 | N61: 9 | O61: 88 | Q61: 322 | R61: 12°
A62: 6 | E62: 43 | F62: 23 | G62: 23 | I62: 16 | J62: 10 | N62: 8 | O62: 80
A63: 7 | E63: 72 | F63: 22 | G63: 22 | I63: 16 | N63: 4 | O63: 64
A64: 8 | E64: 29 | F64: 23 | G64: 24 | I64: 17 | J64: 17 | N64: 9 | O64: 90

Sheet Classt Serie
A2: Classe A01-015-1 SERIE
A4: Cage | B4: Stam | C4: Eleveur | D4: Club | E4: Bague | F4: R | G4: G | H4: TE | I4: TP | J4: F | K4: B | L4: GL | M4: T | N4: I | O4: Pts | Q4: Total | R4: Classt
R6: CH
R8: 2°
R10: 3°
R12: 4°
R14: 5°
R16: 6°
R18: 7°
R20: 8°
R22: 9°
R24: 10°
R26: 11°
R28: 12°
R30: 13°
R32: 14°
R34: 15°
R36: 16°
R38: 17°
R40: 18°
R42: 19°
R44: 20°
R46: 21°
R48: 22°
R50: 23°
R52: 24°
R54: 25°

Sheet Classt Ind.
A2: Classe A01-012-1 INDIVIDUEL
A4: Cage | B4: Stam | C4: Eleveur | D4: Club | E4: Bague | F4: R | G4: G | H4: TE | I4: TP | J4: F | K4: B | L4: GL | M4: T | N4: I | O4: Pts | Q4: Total | R4: Classt
R6: CH
R7: 2°
R8: 3°
R9: 4°
R10: 5°
R11: 6°
R12: 7°
R13: 8°
R14: 9°
